fUST/lending_fUST_20251104
["ID","MTS","AMOUNT","RATE_DAILY","PERIOD"]
[393099099,1762265432976,-162.0,0.00034,3]
[393099100,1762265432985,-200.0,0.000341,7]
[393099101,1762265432995,-256.6856219,0.00034345,4]
[393099102,1762265433003,-195.16563105,0.00034345,4]
[393099103,1762265433013,-1026.74248761,0.00034345,4]
[393099104,1762265433022,-372.95464248,0.00034879,2]
[393099105,1762265433032,-271.45776978,0.00034926,2]
[393099106,1762265433041,-502.3560487,0.00034973,5]
[393099107,1762265433051,-500.0,0.00034973,5]
[393099108,1762265433062,-579.05357123,0.00034973,5]
[393099109,1762265433071,-500.0,0.00034979,2]
[393099110,1762265433080,-543.32815066,0.00034979,7]
[393099111,1762265433090,-500.0,0.00034979,7]
[393099112,1762265433099,-500.0,0.00034979,7]
[393099113,1762265433109,-500.0,0.00034979,2]
[393099114,1762265433118,-500.0,0.00034979,7]
[393099115,1762265433128,-500.0,0.00034979,2]
[393099116,1762265433137,-500.0,0.00034979,7]
[393099117,1762265433146,-398.46068785,0.00034979,2]
[393099118,1762265433156,-500.0,0.00034979,7]
[393099119,1762265433165,-529.20011901,0.00034979,7]
[393099120,1762265433174,-500.0,0.00034979,2]
[393099121,1762265433183,-500.0,0.00034979,7]
[393099122,1762265433193,-500.0,0.00034979,2]
[393099123,1762265433202,-500.0,0.00034979,2]
[393099124,1762265433211,-221.76009983,0.00034979,7]
[393099125,1762265433221,-500.0,0.00034979,2]
[393099126,1762265433231,-500.0,0.00034979,2]
[393099127,1762265433240,-500.0,0.00034979,2]
[393099128,1762265433249,-500.0,0.00034979,2]
[393099129,1762265433259,-22648.0445832,0.0003498,2]
[393099130,1762265433268,-226.13,0.0003498,10]
[393099131,1762265433278,-250.74058628,0.00034989,7]
[393099132,1762265433287,-175.51841039,0.00034989,7]
[393099133,1762265433297,-100000.0,0.0003499,2]
[393099134,1762265433306,-250.0,0.00035,7]
[393099135,1762265433315,-200.0,0.000351,7]
[393099136,1762265433325,-160.0,0.00035133,2]
[393099137,1762265433334,-512.7289084,0.00035521,5]
[393099138,1762265433343,-500.0,0.00035615,2]
[393099139,1762265433354,-1000.0,0.00035616,120]
[393099140,1762265433363,-1000.0,0.00035616,120]
[393099141,1762265433373,-1000.0,0.00035616,120]
[393099142,1762265433383,-617.52993704,0.00035616,120]
[393099143,1762265433392,-260.0,0.00035681,2]
[393099144,1762265433402,-500.0,0.00035773,2]
[393099145,1762265433411,-500.0,0.00035773,5]
[393099146,1762265433421,-500.0,0.00035773,5]
[393099147,1762265433430,-500.0,0.00035773,5]
[393099148,1762265433439,-500.0,0.00035773,5]
[393099149,1762265433448,-22648.0445832,0.00035795,3]
[393099150,1762265433458,-500.0,0.00035795,2]
[393099151,1762265433467,-500.0,0.00035795,2]
[393099152,1762265433476,-500.0,0.00035795,2]
[393099153,1762265433485,-152.36699624,0.00035795,2]
[393099154,1762265433495,-67944.1337495,0.00035795,3]
[393099155,1762265433504,-151.0,0.00035796,31]
[393099156,1762265433514,-500.0,0.00035804,60]
[393099157,1762265433523,-500.0,0.00035805,3]
[393099158,1762265433532,-154.76472584,0.00035805,3]
[393099159,1762265433542,-151.0,0.00035805,31]
[393099160,1762265433550,-151.0,0.00035805,31]
[393099161,1762265433560,-500.0,0.00035805,2]
[393099162,1762265433569,-500.0,0.00035805,2]
[393099163,1762265433578,-500.0,0.00035805,2]
[393099164,1762265433587,-500.0,0.00035805,2]
[393099165,1762265433595,-500.0,0.00035805,2]
[393099166,1762265433604,-500.0,0.00035805,2]
[393099167,1762265433613,-4000.0,0.00035805,7]
[393099168,1762265433622,-434.26463632,0.00035805,2]
[393099169,1762265433631,-4000.0,0.00035805,7]
[393099170,1762265433639,-4000.0,0.00035805,7]
[393099171,1762265433648,-4000.0,0.00035805,7]
[393099172,1762265433657,-4000.0,0.00035805,7]
[393099173,1762265433666,-4000.0,0.00035805,7]
[393099174,1762265433675,-4000.0,0.00035805,7]
[393099175,1762265433683,-4000.0,0.00035805,7]
[393099176,1762265433692,-4000.0,0.00035805,7]
[393099177,1762265433701,-4000.0,0.00035805,7]
[393099178,1762265433710,-151.0,0.00035805,31]
[393099179,1762265433719,-151.0,0.00035805,2]
[393099180,1762265433728,-151.0,0.00035805,2]
[393099181,1762265433738,-151.0,0.00035805,2]
[393099182,1762265433747,-151.0,0.00035805,2]
[393099183,1762265433760,-151.0,0.00035805,31]
[393099184,1762265433769,-240.115022,0.00035805,31]
[393099185,1762265433778,-500.0,0.00035805,60]
[393099186,1762265433787,-500.0,0.00035805,60]
[393099187,1762265433797,-500.0,0.00035805,60]
[393099188,1762265433806,-500.0,0.00035805,60]
[393099189,1762265433815,-599.52387971,0.00035805,60]
[393099190,1762265433824,-135888.267499,0.00035806,3]
[393099191,1762265433835,-685000.0,0.00035816,2]
[393099192,1762265433843,-151.0,0.00035816,31]
[393099193,1762265433852,-151.0,0.00035816,31]
[393099194,1762265433861,-151.0,0.00035816,31]
[393099195,1762265433871,-151.0,0.00035816,31]
[393099196,1762265433880,-151.0,0.00035816,31]
[393099197,1762265433889,-227.04697,0.00035816,31]
[393099198,1762265433898,-151.0,0.00035816,31]
[393099199,1762265433907,-151.0,0.00035816,31]
[393099200,1762265433915,-500.0,0.00035816,31]
[393099201,1762265433924,-151.0,0.00035816,31]
[393099202,1762265433933,-151.0,0.00035816,31]
[393099203,1762265433941,-151.0,0.00035816,2]
[393099204,1762265433950,-151.0,0.00035816,31]
[393099205,1762265433960,-151.0,0.00035816,2]
[393099206,1762265433969,-151.0,0.00035816,2]
[393099207,1762265433977,-500.0,0.00035821,30]
[393099208,1762265433986,-500.0,0.0003585,2]
[393099209,1762265433995,-500.0,0.0003586,3]
[393099210,1762265434004,-500.0,0.00035871,31]
[393099211,1762265434014,-500.0,0.00035873,5]
[393099212,1762265434023,-500.0,0.00035873,5]
[393099213,1762265434032,-412.11065633,0.00035873,5]
[393099214,1762265434041,-500.0,0.00035873,5]
[393099215,1762265434050,-500.0,0.00035873,3]
[393099216,1762265434060,-500.0,0.00035873,5]
[393099217,1762265434070,-500.0,0.00035873,5]
[393099218,1762265434079,-500.64243665,0.00035873,5]
[393099219,1762265434088,-500.0,0.00035873,5]
[393099220,1762265434097,-150.0,0.00035873,5]
[393099221,1762265434107,-500.0,0.00035873,5]
[393099222,1762265434116,-525.98055103,0.00035904,60]
[393099223,1762265434125,-500.0,0.00035905,2]
[393099224,1762265434134,-500.0,0.00035909,60]
[393099225,1762265434143,-500.0,0.00035909,60]
[393099226,1762265434153,-500.0,0.00035915,3]
[393099227,1762265434162,-322.33263811,0.00035915,2]
[393099228,1762265434172,-164.80590554,0.00035915,2]
[393099229,1762265434181,-1000.0,0.00035915,2]
[393099230,1762265434191,-1000.0,0.00035915,2]
[393099231,1762265434200,-1000.0,0.00035915,2]
[393099232,1762265434209,-1000.0,0.00035915,2]
[393099233,1762265434219,-1000.0,0.00035915,2]
[393099234,1762265434228,-580.19874859,0.00035915,2]
[393099235,1762265434238,-535.59478361,0.00035915,2]
[393099236,1762265434257,-166.0,0.00035915,14]
[393099237,1762265434267,-153.0,0.00035915,14]
[393099238,1762265434276,-172.0,0.00035915,14]
[393099239,1762265434286,-153.0,0.00035915,14]
[393099240,1762265434295,-153.0,0.00035915,14]
[393099241,1762265434304,-153.0,0.00035915,14]
[393099242,1762265434314,-331.0,0.00035915,14]
[393099243,1762265434323,-153.0,0.00035915,14]
[393099244,1762265434332,-331.0,0.00035915,14]
[393099245,1762265434342,-153.0,0.00035915,14]
[393099246,1762265434351,-331.0,0.00035915,14]
[393099247,1762265434362,-153.0,0.00035915,14]
[393099248,1762265434371,-331.0,0.00035915,14]
[393099249,1762265434381,-153.0,0.00035915,14]
[393099250,1762265434391,-331.0,0.00035915,14]
[393099251,1762265434402,-153.0,0.00035915,14]
[393099252,1762265434411,-331.0,0.00035915,14]
[393099253,1762265434420,-153.0,0.00035915,14]
[393099254,1762265434430,-319.93058499,0.00035915,14]
[393099255,1762265434439,-153.0,0.00035915,14]
[393099256,1762265434449,-153.0,0.00035915,14]
[393099257,1762265434458,-153.0,0.00035915,14]
[393099258,1762265434468,-153.0,0.00035915,14]
[393099259,1762265434480,-173.0,0.00035915,14]
[393099260,1762265434490,-153.0,0.00035915,14]
[393099261,1762265434499,-175.36565771,0.00035915,14]
[393099262,1762265434508,-153.0,0.00035915,14]
[393099263,1762265434517,-153.0,0.00035915,14]
[393099264,1762265434526,-153.0,0.00035915,14]
[393099265,1762265434536,-153.0,0.00035915,14]
[393099266,1762265434546,-200.24280584,0.00035915,14]
[393099267,1762265434555,-1000.0,0.00035915,30]
[393099268,1762265434565,-1000.0,0.00035915,30]
[393099269,1762265434574,-1000.0,0.00035915,30]
[393099270,1762265434584,-1000.0,0.00035915,30]
[393099271,1762265434593,-1000.0,0.00035915,30]
[393099272,1762265434602,-1000.0,0.00035915,30]
[393099273,1762265434614,-996.4129418,0.00035915,30]
[393099274,1762265434624,-151.0,0.00035915,14]
[393099275,1762265434633,-201.69278452,0.00035915,14]
[393099276,1762265434642,-153.0,0.00035915,14]
[393099277,1762265434651,-163.45184402,0.00035915,14]
[393099278,1762265434660,-331.0,0.00035915,14]
[393099279,1762265434669,-331.0,0.00035915,14]
[393099280,1762265434679,-331.0,0.00035915,14]
[393099281,1762265434688,-151.0,0.00035925,31]
[393099282,1762265434701,-500.0,0.00035926,31]
[393099283,1762265434710,-535.0,0.00035959,2]
[393099284,1762265434719,-151.0,0.00035962,31]
[393099285,1762265434728,-263.165288,0.00035962,31]
[393099286,1762265434737,-151.0,0.00035962,2]
[393099287,1762265434747,-500.0,0.00035969,3]
[393099288,1762265434761,-500.0,0.00035973,5]
[393099289,1762265434770,-500.0,0.00035973,5]
[393099290,1762265434779,-500.0,0.00035973,5]
[393099291,1762265434789,-500.0,0.00035973,5]
[393099292,1762265434798,-500.0,0.00035973,5]
[393099293,1762265434808,-500.0,0.00035973,5]
[393099294,1762265434817,-500.0,0.00035973,5]
[393099295,1762265434828,-501.17308663,0.00035973,5]
[393099296,1762265434837,-508.01312062,0.00035973,5]
[393099297,1762265434847,-500.0,0.00035973,5]
[393099298,1762265434856,-500.0,0.00035973,5]
[393099299,1762265434865,-500.0,0.00035973,5]
[393099300,1762265434875,-500.0,0.00035973,5]
[393099301,1762265434884,-636.52026889,0.00035973,5]
[393099302,1762265434894,-500.0,0.0003598,31]
[393099303,1762265434903,-151.0,0.0003599,31]
[393099304,1762265434913,-151.0,0.0003599,31]
[393099305,1762265434923,-151.0,0.0003599,31]
[393099306,1762265434932,-151.0,0.0003599,31]
[393099307,1762265434942,-151.0,0.00036,31]
[393099308,1762265434951,-151.0,0.00036,31]
[393099309,1762265434960,-151.0,0.00036,31]
[393099310,1762265434969,-151.0,0.00036,31]
[393099311,1762265435097,-151.0,0.00036,31]
[393099312,1762265435111,-151.0,0.00036,31]
[393099313,1762265435121,-153.055431,0.00036,31]
[393099314,1762265435130,-547.480274,0.00036,20]
[393099315,1762265435139,-151.0,0.00036,31]
[393099316,1762265435149,-151.0,0.00036,31]
[393099317,1762265435159,-151.0,0.00036,31]
[393099318,1762265435168,-500.0,0.00036024,3]
[393099319,1762265435178,-500.0,0.00036035,31]
[393099320,1762265435188,-343.34647829,0.00036073,5]
[393099321,1762265435197,-500.83073763,0.00036073,5]
[393099322,1762265435207,-500.0,0.00036073,5]
[393099323,1762265435216,-404.20839093,0.00036079,3]
[393099324,1762265435226,-500.0,0.0003609,31]
[393099325,1762265435236,-151.0,0.0003609,2]
[393099326,1762265435245,-168.0,0.0003609,2]
[393099327,1762265435255,-16338.79,0.000361,14]
[393099328,1762265435265,-2241.59,0.000361,14]
[393099329,1762265435274,-151.0,0.000361,31]
[393099330,1762265435283,-200.0,0.00036145,31]
[393099331,1762265435293,-168.0,0.00036154,2]
[393099332,1762265435302,-360.0,0.00036229,2]
[393099333,1762265435312,-26399.11044098,0.00036234,2]
[393099334,1762265435322,-365.04,0.000363,30]
[393099335,1762265435332,-164.92,0.000363,7]
[393099336,1762265435341,-500.0,0.00036321,5]
[393099337,1762265435350,-504.43111576,0.00036321,5]
[393099338,1762265435360,-1000.0,0.00036321,5]
[393099339,1762265435369,-168.0,0.00036403,120]
[393099340,1762265435379,-168.0,0.00036406,2]
[393099341,1762265435388,-476.24380117,0.00036421,5]
[393099342,1762265435398,-1000.0,0.00036421,5]
[393099343,1762265435407,-1000.0,0.00036421,5]
[393099344,1762265435418,-1000.0,0.00036421,5]
[393099345,1762265435427,-250.0,0.00036421,5]
[393099346,1762265435436,-1000.0,0.00036421,5]
[393099347,1762265435446,-1000.0,0.00036521,5]
[393099348,1762265435455,-344.7864797,0.00036521,5]
[393099349,1762265435465,-1000.0,0.00036521,5]
[393099350,1762265435474,-1000.0,0.00036521,5]
[393099351,1762265435484,-1000.0,0.00036521,5]
[393099352,1762265435494,-500.0,0.00036521,5]
[393099353,1762265435503,-1000.0,0.00036521,5]
[393099354,1762265435513,-1000.0,0.00036521,5]
[393099355,1762265435522,-985.0,0.00036614,2]
[393099356,1762265435532,-627.0,0.00036614,2]
[393099357,1762265435541,-2185.964,0.00036614,2]
[393099358,1762265435550,-1000.0,0.00036621,5]
[393099359,1762265435560,-150.31,0.00036646,60]
[393099360,1762265435569,-168.0,0.00036683,2]
[393099361,1762265435579,-192.0,0.00036726,2]
[393099362,1762265435588,-150.31,0.00036746,60]
[393099363,1762265435597,-460.0,0.00036777,2]
[393099364,1762265435607,-168.0,0.00036787,2]
[393099365,1762265435615,-7721.89225284,0.00036789,60]
[393099366,1762265435624,-4000.0,0.00036805,7]
[393099367,1762265435633,-4000.0,0.00036805,7]
[393099368,1762265435643,-4000.0,0.00036805,7]
[393099369,1762265435652,-4000.0,0.00036805,7]
[393099370,1762265435662,-4000.0,0.00036805,7]
[393099371,1762265435670,-4000.0,0.00036805,7]
[393099372,1762265435679,-4000.0,0.00036805,7]
[393099373,1762265435688,-4000.0,0.00036805,7]
[393099374,1762265435698,-4000.0,0.00036805,7]
[393099375,1762265435707,-4000.0,0.00036805,7]
[393099376,1762265435716,-150.31,0.00036846,60]
[393099377,1762265435726,-168.0,0.00036846,2]
[393099378,1762265435735,-904.23280624,0.00036868,5]
[393099379,1762265435744,-500.0,0.00036873,5]
[393099380,1762265435756,-401.96497398,0.00036873,3]
[393099381,1762265435767,-500.0,0.00036873,5]
[393099382,1762265435777,-257.7860095,0.00036873,5]
[393099383,1762265435786,-500.0,0.00036873,5]
[393099384,1762265435796,-501.40456731,0.00036873,5]
[393099385,1762265435807,-500.0,0.00036873,5]
[393099386,1762265435817,-500.0,0.00036873,5]
[393099387,1762265435827,-168.0,0.00036893,7]
[393099388,1762265435837,-150.31,0.00036946,60]
[393099389,1762265435846,-1500.0,0.00036968,5]
[393099390,1762265435855,-1500.0,0.00036968,5]
[393099391,1762265435865,-1000.0,0.00036968,5]
[393099392,1762265435874,-350.0,0.00036968,5]
[393099393,1762265435884,-1500.0,0.00036968,5]
[393099394,1762265435893,-500.0,0.00036973,5]
[393099395,1762265435903,-500.0,0.00036973,5]
[393099396,1762265435912,-502.3954909,0.00036973,4]
[393099397,1762265435921,-500.0,0.00036973,5]
[393099398,1762265435932,-366.63592304,0.00036973,5]
[393099399,1762265435941,-500.0,0.00036973,5]
[393099400,1762265435951,-400.24,0.00037,3]
[393099401,1762265435961,-2006.29,0.00037,37]
[393099402,1762265435970,-28371.20193155,0.00037,2]
[393099403,1762265435979,-4264.14231832,0.00037,120]
[393099404,1762265435989,-150.31,0.00037046,60]
[393099405,1762265435998,-1500.0,0.00037068,5]
[393099406,1762265436008,-888.82687042,0.00037068,5]
[393099407,1762265436026,-1381.40049954,0.00037068,5]
[393099408,1762265436037,-500.0,0.00037068,5]
[393099409,1762265436047,-1000.0,0.00037068,5]
[393099410,1762265436057,-1500.0,0.00037068,5]
[393099411,1762265436068,-287.62645837,0.000371,120]
[393099412,1762265436078,-289.36031633,0.000371,120]
[393099413,1762265436087,-966.51133988,0.000371,120]
[393099414,1762265436097,-316.37345871,0.000371,120]
[393099415,1762265436118,-1091.09558633,0.000371,120]
[393099416,1762265436134,-211.3686592,0.000371,120]
[393099417,1762265436149,-190.27333298,0.000371,120]
[393099418,1762265436165,-191.8851717,0.000371,120]
[393099419,1762265436178,-150.31,0.00037146,60]
[393099420,1762265436190,-168.0,0.00037175,7]
[393099421,1762265436205,-4054.24,0.000372,17]
[393099422,1762265436219,-150.31,0.00037246,60]
[393099423,1762265436232,-168.0,0.00037341,2]
[393099424,1762265436246,-150.31,0.00037346,60]
[393099425,1762265436260,-204.0,0.00037351,60]
[393099426,1762265436274,-500.0,0.00037356,14]
[393099427,1762265436288,-152.0,0.00037385,20]
[393099428,1762265436302,-479.0,0.000374,120]
[393099429,1762265436316,-168.0,0.000374,2]
[393099430,1762265436328,-500.0,0.0003742,30]
[393099431,1762265436341,-500.98220529,0.00037421,5]
[393099432,1762265436357,-1000.0,0.00037421,5]
[393099433,1762265436370,-500.0,0.00037421,5]
[393099434,1762265436384,-587.3743,0.00037421,5]
[393099435,1762265436398,-500.0,0.00037427,30]
[393099436,1762265436409,-500.0,0.00037427,30]
[393099437,1762265436421,-500.0,0.00037427,15]
[393099438,1762265436431,-500.0,0.00037427,2]
[393099439,1762265436442,-500.0,0.00037427,7]
[393099440,1762265436454,-500.0,0.00037427,30]
[393099441,1762265436464,-500.0,0.00037427,2]
[393099442,1762265436477,-231.1,0.00037427,2]
[393099443,1762265436491,-150.31,0.00037446,60]
[393099444,1762265436503,-168.0,0.00037472,7]
[393099445,1762265436515,-500.0,0.00037473,5]
[393099446,1762265436528,-168.0,0.00037507,7]
[393099447,1762265436541,-150.0,0.00037512,120]
[393099448,1762265436554,-189908.92047843,0.00037512,30]
[393099489,1762265439047,-394.77,0.0003498,10]
[393099490,1762265439057,-103.372,0.00035796,2]
[393099513,1762265440643,-210.05699023,0.00035438,2]
[393099514,1762265440652,-165.791685,0.00035796,2]
[393099515,1762265440662,-136.3562685,0.00037512,30]
[393099516,1762265440714,-2070.43239359,0.00037512,30]
[393099517,1762265440727,-28966.74547473,0.00037512,30]
[393099518,1762265440738,-458.9508,0.00037512,30]
[393099554,1762265446810,-425.038,0.00036651,2]
[393099555,1762265446820,-328.97,0.00037502,10]
[393099556,1762265446833,-305.1694589,0.00037512,30]
[393099557,1762266095091,163.636596,0.00013699,2]
[393099589,1762266504905,256.15073226,0.0002,7]
[393099618,1762266631847,-614.74090975,0.00023494,2]
[393099619,1762266631858,-2184.89267852,0.00023494,2]
[393099620,1762266631869,-2200.36641173,0.00023494,2]
[393099621,1762266631879,-399.0,0.00023494,2]
[393099622,1762266631888,-2.68358827,0.00023732,2]
[393099743,1762266723991,199999.97,0.000211,2]
[393099745,1762266884239,183.250516,0.00030137,120]
[393099794,1762267831950,-300.0,0.00023626,2]
[393099796,1762267831959,-300.0,0.00023626,2]
[393099798,1762267831968,-1000.0,0.00023627,30]
[393099800,1762267831977,-175.24680575,0.00023627,30]
[393099802,1762267831989,-824.75319425,0.00023627,30]
[393099803,1762267831999,-1000.0,0.00023627,30]
[393099805,1762267832008,-1000.0,0.00023627,30]
[393099807,1762267832017,-1000.0,0.00023627,30]
[393099809,1762267832027,-1000.0,0.00023627,30]
[393099811,1762267832036,-1000.0,0.00023627,30]
[393099813,1762267832045,-650.0,0.00023627,30]
[393099815,1762267832054,-177.31641173,0.00023732,2]
[393099817,1762267832063,-573.98,0.00023972,2]
[393099819,1762267832072,-9430.31468356,0.00023972,2]
[393099821,1762267832081,-163.636596,0.00023973,2]
[393099823,1762267832090,-500.0,0.0002435,2]
[393099826,1762267832099,-500.0,0.0002435,2]
[393099829,1762267832108,-500.0,0.0002435,2]
[393099832,1762267832117,-504.11390506,0.0002435,2]
[393099834,1762267832128,-500.0,0.0002435,2]
[393099836,1762267832138,-500.0,0.0002435,2]
[393099837,1762267832147,-452.78304921,0.00024649,2]
[393099838,1762267832155,-8654.06887424,0.0002465,2]
[393099839,1762267832164,-500.0,0.000247,2]
[393099840,1762267832173,-500.0,0.000247,2]
[393099841,1762267832181,-703.71427586,0.00024898,2]
[393099842,1762267832190,-1000.0,0.00024898,2]
[393099843,1762267832199,-1000.0,0.00024898,2]
[393099844,1762267832208,-1000.0,0.00024898,2]
[393099845,1762267832217,-312.0,0.000249,2]
[393099846,1762267832226,-1000.0,0.00025248,2]
[393099847,1762267832235,-605.60117365,0.00025248,2]
[393099848,1762267832243,-1500.0,0.00025446,2]
[393099849,1762267832252,-714.5817937,0.00025446,2]
[393099850,1762267832261,-420.0,0.00025631,2]
[393099851,1762267832270,-1500.0,0.00025796,2]
[393099852,1762267832279,-501.74492321,0.00025867,2]
[393099853,1762267832287,-2000.0,0.00025994,2]
[393099854,1762267832296,-500.0,0.0002615,2]
[393099855,1762267832304,-500.0,0.0002615,2]
[393099856,1762267832313,-326.33531217,0.00026275,2]
[393099857,1762267832323,-2000.0,0.00026344,2]
[393099858,1762267832331,-2500.0,0.00026542,2]
[393099859,1762267832340,-1000.0,0.00026698,2]
[393099860,1762267832349,-510.00068975,0.00026698,2]
[393099861,1762267832358,-2500.0,0.00026892,2]
[393099862,1762267832366,-1030.4329775,0.00026915,2]
[393099863,1762267832375,-500.0,0.00026925,2]
[393099864,1762267832384,-3000.0,0.0002709,2]
[393099865,1762267832393,-1500.0,0.00027246,2]
[393099866,1762267832402,-282.51315626,0.0002732,2]
[393099867,1762267832411,-330.29133073,0.00027422,2]
[393099868,1762267832420,-776.94197243,0.0002744,5]
[393099869,1762267832432,-1000.0,0.00027473,5]
[393099870,1762267832441,-3500.0,0.00027638,5]
[393099871,1762267832449,-2000.0,0.00027794,5]
[393099872,1762267832458,-587.0,0.00027806,2]
[393099873,1762267832467,-4000.0,0.00028186,5]
[393099874,1762267832476,-2218.21620373,0.00028342,5]
[393099875,1762267832484,-152.46737503,0.00029056,7]
[393099876,1762267832494,-823.0,0.00030165,2]
[393099877,1762267832503,-326.33531211,0.00030285,2]
[393099878,1762267832513,-229.589,0.00030761,27]
[393099879,1762267832522,-151.0,0.00030786,7]
[393099880,1762267832531,-282.51315626,0.00031598,3]
[393099881,1762267832539,-160.314194,0.00032155,20]
[393099882,1762267832548,-9019.24756969,0.000322,2]
[393099883,1762267832557,-1152.0,0.00032725,2]
[393099884,1762267832566,-850.00015071,0.00032877,120]
[393099885,1762267832574,-168.0,0.00032927,2]
[393099886,1762267832583,-168.0,0.00032962,2]
[393099887,1762267832592,-296.35397935,0.0003311,2]
[393099888,1762267832601,-964.07061051,0.00033116,2]
[393099889,1762267832610,-1712.18940426,0.00033116,2]
[393099890,1762267832619,-168.0,0.00033315,2]
[393099894,1762267832731,-168.0,0.00033326,2]
[393099895,1762267832740,-168.0,0.00033406,7]
[393099897,1762267832750,-168.0,0.0003355,2]
[393099899,1762267832759,-168.0,0.00033645,2]
[393099901,1762267832768,-168.0,0.0003371,2]
[393099903,1762267832777,-333.0,0.00033723,2]
[393099905,1762267832786,-2596.5055,0.00034,120]
[393099907,1762267832796,-350.82317461,0.00034,4]
[393099909,1762267832805,-168.0,0.00034038,7]
[393099911,1762267832814,-503.16175686,0.00034118,7]
[393099913,1762267832824,-163.636596,0.00034247,2]
[393099915,1762267832833,-326.33531211,0.00034295,2]
[393099917,1762267832842,-333.0,0.0003453,7]
[393099919,1762267832851,-168.0,0.00034582,2]
[393099921,1762267832861,-333.0,0.00034835,2]
[393099923,1762267832870,-412.0,0.00035124,2]
[393099925,1762267832882,-334.0,0.00035431,2]
[393099927,1762267832893,-333.0,0.00035437,2]
[393099929,1762267832903,-568.0,0.00035502,2]
[393099931,1762267832912,-817.96,0.0003554,10]
[393099933,1762267832921,-333.0,0.0003555,2]
[393099934,1762267832931,-333.0,0.00035634,120]
[393099935,1762267832941,-282.51315626,0.00035877,4]
[393099936,1762267832950,-333.0,0.00035941,7]
[393099937,1762267832960,-334.0,0.00035954,120]
[393099938,1762267832969,-335.0,0.0003598,7]
[393099939,1762267832979,-394.1956525,0.00036027,30]
[393099941,1762267832989,-394.1956525,0.00036027,30]
[393099943,1762267832998,-388.6547087,0.00036027,30]
[393099945,1762267833008,-168.0,0.0003612,7]
[393099947,1762267833017,-335.0,0.00036164,2]
[393099948,1762267833027,-330.29133073,0.00036362,4]
[393099950,1762267833036,-334.0,0.00036591,7]
[393099952,1762267833046,-333.0,0.00036612,7]
[393099954,1762267833055,-333.0,0.00036912,2]
[393099955,1762267833065,-500.0,0.00036973,5]
[393099956,1762267833074,-150.0,0.00036973,5]
[393099957,1762267833083,-500.0,0.00036973,5]
[393099958,1762267833093,-472.45402741,0.00036973,5]
[393099959,1762267833103,-500.0,0.00036973,5]
[393099960,1762267833112,-826.92,0.0003698,10]
[393099961,1762267833122,-239.48878427,0.00036989,15]
[393099962,1762267833136,-52750.10323555,0.0003699,3]
[393099963,1762267833180,-417.93636814,0.0003699,3]
[393099978,1762267837904,-246.86223332,0.00025445,2]
[393099979,1762267837913,-169.91112433,0.00025445,2]
[393099980,1762267837923,-599.82896532,0.00025445,2]
[393099981,1762267837932,-18081.96438815,0.0003699,3]
[393099982,1762267837944,-19580.81668766,0.0003699,3]
[393099983,1762267837955,-1030.0,0.0003699,3]
[393099984,1762267838012,-12278.47401717,0.0003699,3]
[393100015,1762267840159,-38543.38617733,0.0003699,3]
[393100016,1762267840168,-371.82296382,0.00037,20]
[393100017,1762267840178,-156568.40123692,0.00037,2]
[393100018,1762267840197,-103100.0,0.00037,2]